[Event "Late-Titled-Tuesday-Blitz-October-03-2023"]
[Site "Chess.com"]
[Date "2023.10.03"]
[Round "4"]
[White "carlospaul1990"]
[Black "venturov"]
[Result "1-0"]
[WhiteElo "2344"]
[BlackElo "2487"]
[TimeControl "180+1"]
[EndTime "14:39:31 PDT"]
[Termination "carlospaul1990 won by resignation"]

1. d4 {[%clk 0:03:00.9]} 1... Nf6 {[%clk 0:02:56.7]} 2. c4 {[%clk 0:03:00.1]}
2... d6 {[%clk 0:02:56.9]} 3. g3 {[%clk 0:03:00.4]} 3... g6 {[%clk 0:02:56.9]}
4. Bg2 {[%clk 0:02:59.4]} 4... Bg7 {[%clk 0:02:56.6]} 5. Nc3 {[%clk 0:02:59.5]}
5... Nbd7 {[%clk 0:02:54.7]} 6. Nf3 {[%clk 0:02:59.6]} 6... O-O {[%clk
0:02:54.7]} 7. O-O {[%clk 0:02:59.7]} 7... e5 {[%clk 0:02:54.7]} 8. e4 {[%clk
0:02:58.6]} 8... Re8 {[%clk 0:02:53.2]} 9. h3 {[%clk 0:02:58.9]} 9... exd4
{[%clk 0:02:53.3]} 10. Nxd4 {[%clk 0:02:58.6]} 10... Nc5 {[%clk 0:02:52.1]} 11.
Re1 {[%clk 0:02:56.5]} 11... Bd7 {[%clk 0:02:52.2]} 12. Bf4 {[%clk 0:02:48.8]}
12... h6 {[%clk 0:02:51.5]} 13. Ndb5 {[%clk 0:02:47.8]} 13... a6 {[%clk
0:02:33.3]} 14. Nxc7 {[%clk 0:02:43.7]} 14... Qxc7 {[%clk 0:02:30.9]} 15. Bxd6
{[%clk 0:02:40.5]} 15... Qc8 {[%clk 0:02:30.7]} 16. e5 {[%clk 0:02:38.8]} 16...
Nh7 {[%clk 0:02:22.8]} 17. Nd5 {[%clk 0:02:32.2]} 17... Bxh3 {[%clk 0:02:12.3]}
18. Nb6 {[%clk 0:02:23.6]} 18... Qf5 {[%clk 0:01:55.3]} 19. Nxa8 {[%clk
0:02:22.3]} 19... Bxg2 {[%clk 0:01:47.4]} 20. Kxg2 {[%clk 0:02:15.8]} 20... Nd3
{[%clk 0:01:17.1]} 21. Rf1 {[%clk 0:01:03.1]} 21... Rxa8 {[%clk 0:01:07]} 22.
Qf3 {[%clk 0:01:02.6]} 22... Qxf3+ {[%clk 0:00:58.4]} 23. Kxf3 {[%clk
0:01:02.7]} 23... Ng5+ {[%clk 0:00:58.6]} 24. Kg2 {[%clk 0:00:56.6]} 24... Ne4
{[%clk 0:00:47]} 25. Rad1 {[%clk 0:00:47.9]} 25... Nxb2 {[%clk 0:00:41.5]} 26.
Rde1 {[%clk 0:00:33.5]} 26... Nd2 {[%clk 0:00:33.2]} 27. Rh1 {[%clk 0:00:28.8]}
27... Ndxc4 {[%clk 0:00:29.8]} 28. Re4 {[%clk 0:00:20.6]} 28... Nxd6 {[%clk
0:00:20.1]} 29. exd6 {[%clk 0:00:20.5]} 29... Rd8 {[%clk 0:00:20.7]} 30. Re7
{[%clk 0:00:17.2]} 30... Rxd6 {[%clk 0:00:18.9]} 31. Rxb7 {[%clk 0:00:17.3]}
31... Rd2 {[%clk 0:00:18.5]} 32. a4 {[%clk 0:00:17.2]} 32... Nd3 {[%clk
0:00:18.6]} 33. Rf1 {[%clk 0:00:17.3]} 33... Nc5 {[%clk 0:00:17.8]} 34. Rc7
{[%clk 0:00:16.6]} 34... Nxa4 {[%clk 0:00:17.6]} 35. Ra7 {[%clk 0:00:16.3]}
35... Nb6 {[%clk 0:00:16.7]} 36. Rb1 {[%clk 0:00:16]} 36... Nd5 {[%clk
0:00:14.6]} 37. Rxa6 {[%clk 0:00:15.5]} 37... Bd4 {[%clk 0:00:12.5]} 38. Rb8+
{[%clk 0:00:13.3]} 38... Kg7 {[%clk 0:00:12.5]} 39. Kf3 {[%clk 0:00:13.6]} 39...
f6 {[%clk 0:00:09.6]} 40. Ke4 {[%clk 0:00:12.7]} 40... Be5 {[%clk 0:00:06]} 41.
Ra7+ {[%clk 0:00:12.2]} 41... Nc7 {[%clk 0:00:05.1]} 42. Rbb7 {[%clk 0:00:11.8]}
42... Rc2 {[%clk 0:00:04.2]} 43. f4 {[%clk 0:00:11.9]} 43... Bd6 {[%clk
0:00:03.7]} 44. Kd3 {[%clk 0:00:12.2]} 44... Rc5 {[%clk 0:00:03]} 45. Rb6 {[%clk
0:00:12.3]} 45... Rd5+ {[%clk 0:00:01.8]} 46. Ke4 {[%clk 0:00:12.2]} 46... Kf8
{[%clk 0:00:02]} 47. Rb8+ {[%clk 0:00:09.2]} 47... Ke7 {[%clk 0:00:02.1]} 48.
Rbb7 {[%clk 0:00:08.2]} 48... Kd7 {[%clk 0:00:01.9]} 49. Rxc7+ {[%clk
0:00:08.1]} 49... Bxc7 {[%clk 0:00:01.7]} 50. Kxd5 {[%clk 0:00:09]} 50... g5
{[%clk 0:00:01.4]} 51. Ra6 {[%clk 0:00:09.3]} 51... gxf4 {[%clk 0:00:01.5]} 52.
g4 {[%clk 0:00:09.7]} 52... f3 {[%clk 0:00:01.6]} 53. Ra3 {[%clk 0:00:09.8]}
53... Be5 {[%clk 0:00:01.4]} 54. Rxf3 {[%clk 0:00:10.1]} 54... Ke7 {[%clk
0:00:02.3]} 55. Ke4 {[%clk 0:00:10.2]} 55... Kf7 {[%clk 0:00:02.9]} 56. Ra3
{[%clk 0:00:10.6]} 56... Kg6 {[%clk 0:00:03.5]} 57. Ra6 {[%clk 0:00:11.5]} 57...
Kg5 {[%clk 0:00:04.2]} 58. Kf3 {[%clk 0:00:11.8]} 58... h5 {[%clk 0:00:04.6]}
59. gxh5 {[%clk 0:00:12.2]} 59... Kxh5 {[%clk 0:00:05.5]} 60. Ke4 {[%clk
0:00:13.1]} 60... Kg5 {[%clk 0:00:05.9]} 61. Ra5 {[%clk 0:00:13.6]} 61... Kg6
{[%clk 0:00:05.9]} 62. Rd5 {[%clk 0:00:13.4]} 62... Kg5 {[%clk 0:00:06.4]} 63.
Rb5 {[%clk 0:00:13]} 63... Kg4 {[%clk 0:00:07]} 64. Rb3 {[%clk 0:00:13.1]} 64...
f5+ {[%clk 0:00:07.4]} 65. Kxe5 {[%clk 0:00:13.3]} 65... f4 {[%clk 0:00:07.8]}
66. Rb4 {[%clk 0:00:12.1]} 66... Kg3 {[%clk 0:00:07.3]} 67. Rxf4 {[%clk
0:00:12.7]} 1-0

[Event "Late-Titled-Tuesday-Blitz-October-03-2023"]
[Site "Chess.com"]
[Date "2023.10.03"]
[Round "4"]
[White "Onthequiet"]
[Black "K_alena13"]
[Result "1-0"]
[WhiteElo "2400"]
[BlackElo "2112"]
[TimeControl "180+1"]
[EndTime "14:39:33 PDT"]
[Termination "Onthequiet won by resignation"]

1. d4 {[%clk 0:02:58.2]} 1... d5 {[%clk 0:02:59.3]} 2. Nf3 {[%clk 0:02:58.7]}
2... Nf6 {[%clk 0:02:58.9]} 3. c4 {[%clk 0:02:58.7]} 3... dxc4 {[%clk
0:02:59.6]} 4. e3 {[%clk 0:02:55.5]} 4... Bg4 {[%clk 0:02:56]} 5. Bxc4 {[%clk
0:02:54.7]} 5... e6 {[%clk 0:02:56.5]} 6. Nc3 {[%clk 0:02:53.3]} 6... a6 {[%clk
0:02:51.3]} 7. a4 {[%clk 0:02:52.8]} 7... Nc6 {[%clk 0:02:50.1]} 8. O-O {[%clk
0:02:52.1]} 8... Be7 {[%clk 0:02:49.9]} 9. a5 {[%clk 0:02:50.5]} 9... O-O {[%clk
0:02:49]} 10. Qa4 {[%clk 0:02:49.8]} 10... Bxf3 {[%clk 0:02:45.6]} 11. gxf3
{[%clk 0:02:49.9]} 11... Nd5 {[%clk 0:02:31]} 12. Bd2 {[%clk 0:02:40.2]} 12...
Ndb4 {[%clk 0:02:04.7]} 13. Kh1 {[%clk 0:02:34.7]} 13... Bd6 {[%clk 0:02:02.1]}
14. f4 {[%clk 0:02:32.4]} 14... Ne7 {[%clk 0:01:48.9]} 15. Ne4 {[%clk
0:02:30.2]} 15... Nbd5 {[%clk 0:01:42.7]} 16. Rg1 {[%clk 0:02:26.3]} 16... f5
{[%clk 0:01:35.3]} 17. Ng5 {[%clk 0:02:24.9]} 17... Rf6 {[%clk 0:01:29.2]} 18.
Qb3 {[%clk 0:02:21.1]} 18... c6 {[%clk 0:01:09.5]} 19. Bc3 {[%clk 0:02:06.6]}
19... Rh6 {[%clk 0:00:59.8]} 20. Qxb7 {[%clk 0:01:49.7]} 20... Rb8 {[%clk
0:00:48.2]} 21. Qxa6 {[%clk 0:01:48.6]} 21... Ra8 {[%clk 0:00:48.4]} 22. Qb7
{[%clk 0:01:40.9]} 22... Rb8 {[%clk 0:00:48.6]} 23. a6 {[%clk 0:01:39]} 23...
Rxb7 {[%clk 0:00:33.4]} 24. axb7 {[%clk 0:01:38.6]} 24... Bb8 {[%clk 0:00:33.3]}
25. Ra8 {[%clk 0:01:37.6]} 25... Qc7 {[%clk 0:00:29.7]} 26. Rg3 {[%clk
0:01:19.4]} 26... Qxb7 {[%clk 0:00:27.3]} 27. Ra1 {[%clk 0:01:19.6]} 27... Qc7
{[%clk 0:00:26]} 28. Rag1 {[%clk 0:01:19.3]} 28... Rg6 {[%clk 0:00:19.6]} 29.
Nxe6 {[%clk 0:01:14.2]} 29... Rxe6 {[%clk 0:00:15.6]} 30. Rxg7+ {[%clk
0:01:14.4]} 30... Kf8 {[%clk 0:00:16.2]} 31. Rxh7 {[%clk 0:01:12.1]} 31... Rg6
{[%clk 0:00:15.1]} 32. Rxg6 {[%clk 0:01:10.5]} 32... Nxg6 {[%clk 0:00:14.5]} 33.
Rxc7 {[%clk 0:01:10.1]} 33... Bxc7 {[%clk 0:00:15.4]} 34. Bd2 {[%clk 0:01:02.7]}
34... Ke7 {[%clk 0:00:14.2]} 35. Kg2 {[%clk 0:01:01.6]} 35... Kf6 {[%clk
0:00:13.2]} 36. Kf1 {[%clk 0:01:02]} 36... Nb6 {[%clk 0:00:13]} 37. Bd3 {[%clk
0:00:59.7]} 37... Na4 {[%clk 0:00:11.6]} 38. b4 {[%clk 0:00:57.9]} 38... Nb6
{[%clk 0:00:11.2]} 39. b5 {[%clk 0:00:57.4]} 39... cxb5 {[%clk 0:00:11.3]} 40.
Bxb5 {[%clk 0:00:57.3]} 40... Nh4 {[%clk 0:00:10.9]} 41. Bc6 {[%clk 0:00:56.7]}
41... Ng6 {[%clk 0:00:11]} 42. Bc3 {[%clk 0:00:53.7]} 42... Ne7 {[%clk 0:00:11]}
43. Bf3 {[%clk 0:00:52.3]} 43... Ned5 {[%clk 0:00:10.5]} 44. Bd2 {[%clk
0:00:52.8]} 44... Ke6 {[%clk 0:00:08.5]} 45. h4 {[%clk 0:00:52.2]} 45... Nc4
{[%clk 0:00:08.4]} 46. Bc1 {[%clk 0:00:52.3]} 46... Bd8 {[%clk 0:00:08.2]} 47.
h5 {[%clk 0:00:52.3]} 47... Bf6 {[%clk 0:00:08.3]} 48. Be2 {[%clk 0:00:52.2]}
48... Nd6 {[%clk 0:00:07.5]} 49. Bd3 {[%clk 0:00:51.4]} 49... Bg7 {[%clk
0:00:07.2]} 50. f3 {[%clk 0:00:50.5]} 50... Nf6 {[%clk 0:00:07.1]} 51. Ba3
{[%clk 0:00:46.1]} 51... Nxh5 {[%clk 0:00:06.5]} 52. Bc5 {[%clk 0:00:45]} 52...
Nf6 {[%clk 0:00:05.8]} 53. Ke2 {[%clk 0:00:44.9]} 53... Nd7 {[%clk 0:00:05.6]}
54. Ba7 {[%clk 0:00:44.8]} 54... Bf6 {[%clk 0:00:05.6]} 55. e4 {[%clk
0:00:44.9]} 55... fxe4 {[%clk 0:00:05.4]} 56. fxe4 {[%clk 0:00:45.6]} 56... Be7
{[%clk 0:00:05.6]} 57. f5+ {[%clk 0:00:44.5]} 57... Kf7 {[%clk 0:00:05.7]} 58.
e5 {[%clk 0:00:43.8]} 58... Nxf5 {[%clk 0:00:01.6]} 59. Bxf5 {[%clk 0:00:43.7]}
59... Nf8 {[%clk 0:00:01.9]} 60. Bb1 {[%clk 0:00:41.9]} 60... Ne6 {[%clk
0:00:01.7]} 61. Ba2 {[%clk 0:00:41.9]} 61... Bg5 {[%clk 0:00:02.3]} 62. Kd3
{[%clk 0:00:41.8]} 62... Ke7 {[%clk 0:00:02.1]} 63. Bxe6 {[%clk 0:00:41.2]}
63... Kxe6 {[%clk 0:00:02.2]} 64. Ke4 {[%clk 0:00:41.7]} 64... Bd8 {[%clk
0:00:01.6]} 65. d5+ {[%clk 0:00:41.2]} 65... Ke7 {[%clk 0:00:02]} 66. Bc5+
{[%clk 0:00:40.5]} 66... Kd7 {[%clk 0:00:02.4]} 67. e6+ {[%clk 0:00:39.6]} 67...
Ke8 {[%clk 0:00:02.8]} 68. d6 {[%clk 0:00:39.6]} 68... Bg5 {[%clk 0:00:02.6]}
69. Kd5 {[%clk 0:00:39.2]} 69... Kd8 {[%clk 0:00:02.9]} 70. Kc6 {[%clk 0:00:39]}
70... Bf4 {[%clk 0:00:03.2]} 71. Bb6+ {[%clk 0:00:38.5]} 71... Ke8 {[%clk
0:00:03.4]} 72. d7+ {[%clk 0:00:38.6]} 1-0

[Event "Late-Titled-Tuesday-Blitz-October-03-2023"]
[Site "Chess.com"]
[Date "2023.10.03"]
[Round "4"]
[White "scandalgod"]
[Black "StarkyNZ"]
[Result "0-1"]
[WhiteElo "2469"]
[BlackElo "2320"]
[TimeControl "180+1"]
[EndTime "14:39:35 PDT"]
[Termination "StarkyNZ won on time"]

1. d4 {[%clk 0:03:00.9]} 1... Nf6 {[%clk 0:02:59.6]} 2. c4 {[%clk 0:03:00.2]}
2... e6 {[%clk 0:03:00.2]} 3. g3 {[%clk 0:02:54.6]} 3... d5 {[%clk 0:02:56.4]}
4. Nf3 {[%clk 0:02:52.9]} 4... c5 {[%clk 0:02:56.3]} 5. cxd5 {[%clk 0:02:52.5]}
5... Nxd5 {[%clk 0:02:53.5]} 6. Bg2 {[%clk 0:02:52.3]} 6... cxd4 {[%clk
0:02:53.3]} 7. O-O {[%clk 0:02:49.8]} 7... Bc5 {[%clk 0:02:52.2]} 8. Nbd2 {[%clk
0:02:45.1]} 8... Nc6 {[%clk 0:02:50.5]} 9. Nb3 {[%clk 0:02:44.8]} 9... Bb6
{[%clk 0:02:50.8]} 10. Nfxd4 {[%clk 0:02:44.3]} 10... Nxd4 {[%clk 0:02:49.9]}
11. Nxd4 {[%clk 0:02:42.6]} 11... O-O {[%clk 0:02:49.2]} 12. Nf3 {[%clk
0:02:07.5]} 12... Bd7 {[%clk 0:02:44.2]} 13. Bg5 {[%clk 0:02:03.1]} 13... f6
{[%clk 0:02:40]} 14. Bd2 {[%clk 0:02:01.5]} 14... Bc6 {[%clk 0:02:40.2]} 15. Rc1
{[%clk 0:01:59.5]} 15... Kh8 {[%clk 0:02:39.1]} 16. Qb3 {[%clk 0:01:54.4]} 16...
Qd7 {[%clk 0:02:33.1]} 17. Rfd1 {[%clk 0:01:51.5]} 17... Ba4 {[%clk 0:02:33.4]}
18. Qa3 {[%clk 0:01:43.6]} 18... Bxd1 {[%clk 0:02:33.6]} 19. Rxd1 {[%clk
0:01:44.2]} 19... Rfd8 {[%clk 0:02:27.9]} 20. e3 {[%clk 0:00:49.7]} 20... Rac8
{[%clk 0:02:25.5]} 21. Ne1 {[%clk 0:00:45.8]} 21... Ne7 {[%clk 0:02:06]} 22. Bf3
{[%clk 0:00:33.3]} 22... Nc6 {[%clk 0:01:56.7]} 23. Kg2 {[%clk 0:00:31]} 23...
Qe7 {[%clk 0:01:45.7]} 24. Qb3 {[%clk 0:00:30]} 24... Ne5 {[%clk 0:01:39.4]} 25.
Be2 {[%clk 0:00:27.7]} 25... Qc7 {[%clk 0:01:37]} 26. Qxe6 {[%clk 0:00:24.8]}
26... Qc6+ {[%clk 0:01:17]} 27. Qxc6 {[%clk 0:00:24.6]} 27... Rxc6 {[%clk
0:01:16.9]} 28. Bc3 {[%clk 0:00:22.7]} 28... Rxd1 {[%clk 0:01:16.3]} 29. Bxd1
{[%clk 0:00:21.7]} 29... Rd6 {[%clk 0:01:14.1]} 30. Bc2 {[%clk 0:00:20.2]} 30...
Nc6 {[%clk 0:01:10]} 31. Nd3 {[%clk 0:00:18.1]} 31... Ne7 {[%clk 0:01:01.7]} 32.
Kf3 {[%clk 0:00:16]} 32... Nd5 {[%clk 0:01:00.8]} 33. Bd2 {[%clk 0:00:14]} 33...
a5 {[%clk 0:00:58.5]} 34. Ke2 {[%clk 0:00:12.9]} 34... Rc6 {[%clk 0:00:57.3]}
35. Bb3 {[%clk 0:00:12.8]} 35... Rd6 {[%clk 0:00:52.8]} 36. a3 {[%clk 0:00:12]}
36... Nc7 {[%clk 0:00:45.2]} 37. Bc3 {[%clk 0:00:10.8]} 37... Nd5 {[%clk
0:00:42.8]} 38. Bd2 {[%clk 0:00:09.9]} 38... h6 {[%clk 0:00:41.8]} 39. h4 {[%clk
0:00:10.1]} 39... Kh7 {[%clk 0:00:40]} 40. Bc2 {[%clk 0:00:08.4]} 40... Kh8
{[%clk 0:00:38.7]} 41. Bb3 {[%clk 0:00:08.7]} 41... Ne7 {[%clk 0:00:38]} 42. Nf4
{[%clk 0:00:08.1]} 42... g5 {[%clk 0:00:33.2]} 43. hxg5 {[%clk 0:00:07.6]} 43...
hxg5 {[%clk 0:00:34.1]} 44. Nd3 {[%clk 0:00:08.1]} 44... Kg7 {[%clk 0:00:33.9]}
45. Bc3 {[%clk 0:00:08.3]} 45... Nd5 {[%clk 0:00:33.7]} 46. Bd2 {[%clk
0:00:08.1]} 46... Bc7 {[%clk 0:00:30.6]} 47. f4 {[%clk 0:00:08]} 47... gxf4
{[%clk 0:00:30.3]} 48. gxf4 {[%clk 0:00:08.2]} 48... b5 {[%clk 0:00:27.1]} 49.
a4 {[%clk 0:00:07.3]} 49... b4 {[%clk 0:00:26.2]} 50. Nc5 {[%clk 0:00:04.9]}
50... Bb6 {[%clk 0:00:19.1]} 51. Ne4 {[%clk 0:00:04.8]} 51... Rd8 {[%clk
0:00:19.7]} 52. Be1 {[%clk 0:00:04.1]} 52... Nxe3 {[%clk 0:00:18.6]} 53. Bh4
{[%clk 0:00:04.4]} 53... Rf8 {[%clk 0:00:07.4]} 54. Kf3 {[%clk 0:00:04.7]} 54...
Nf5 {[%clk 0:00:05.4]} 55. Be1 {[%clk 0:00:04.7]} 55... Rc8 {[%clk 0:00:03.9]}
56. Bd2 {[%clk 0:00:04.6]} 56... Nd4+ {[%clk 0:00:03.3]} 57. Kg4 {[%clk
0:00:03.2]} 57... Nxb3 {[%clk 0:00:04.2]} 0-1

[Event "Late-Titled-Tuesday-Blitz-October-03-2023"]
[Site "Chess.com"]
[Date "2023.10.03"]
[Round "4"]
[White "alfianasybullina"]
[Black "flukeyNZ"]
[Result "0-1"]
[WhiteElo "2407"]
[BlackElo "2228"]
[TimeControl "180+1"]
[EndTime "14:39:40 PDT"]
[Termination "flukeyNZ won by resignation"]

1. d4 {[%clk 0:03:00.9]} 1... d5 {[%clk 0:02:53.8]} 2. Nf3 {[%clk 0:03:00.7]}
2... e6 {[%clk 0:02:51.1]} 3. Bf4 {[%clk 0:03:00.7]} 3... c5 {[%clk 0:02:50.7]}
4. e3 {[%clk 0:02:58.6]} 4... Nc6 {[%clk 0:02:50.9]} 5. c3 {[%clk 0:02:56.3]}
5... Nf6 {[%clk 0:02:49.9]} 6. Nbd2 {[%clk 0:02:55.9]} 6... Qb6 {[%clk
0:02:50.3]} 7. Qc1 {[%clk 0:02:54.5]} 7... a5 {[%clk 0:02:48.2]} 8. Bd3 {[%clk
0:02:53.5]} 8... Be7 {[%clk 0:02:46.1]} 9. O-O {[%clk 0:02:52.3]} 9... Bd7
{[%clk 0:02:46]} 10. Ne5 {[%clk 0:02:52.2]} 10... cxd4 {[%clk 0:02:40.3]} 11.
Nxd7 {[%clk 0:02:48]} 11... Nxd7 {[%clk 0:02:38.7]} 12. exd4 {[%clk 0:02:48.5]}
12... Rc8 {[%clk 0:02:29.8]} 13. Qb1 {[%clk 0:02:43.8]} 13... Nf6 {[%clk
0:02:05.4]} 14. Re1 {[%clk 0:02:38.8]} 14... O-O {[%clk 0:02:01]} 15. Nf3 {[%clk
0:02:37.2]} 15... a4 {[%clk 0:01:42.4]} 16. a3 {[%clk 0:02:34.3]} 16... Na5
{[%clk 0:01:41.1]} 17. Qc2 {[%clk 0:02:31]} 17... Nc4 {[%clk 0:01:38.6]} 18.
Rab1 {[%clk 0:02:28.3]} 18... Qb3 {[%clk 0:01:22.1]} 19. Qe2 {[%clk 0:02:24.4]}
19... Nd6 {[%clk 0:01:16.8]} 20. Bc2 {[%clk 0:02:13.6]} 20... Qb5 {[%clk
0:01:15.6]} 21. Qxb5 {[%clk 0:02:07.7]} 21... Nxb5 {[%clk 0:01:14]} 22. Bxa4
{[%clk 0:02:08.1]} 22... Nd6 {[%clk 0:01:10.6]} 23. Bxd6 {[%clk 0:02:04.6]}
23... Bxd6 {[%clk 0:01:10]} 24. Bc2 {[%clk 0:02:04.2]} 24... Rc7 {[%clk
0:01:03.9]} 25. Bd3 {[%clk 0:02:03.9]} 25... Rfc8 {[%clk 0:01:03.5]} 26. h3
{[%clk 0:02:04.4]} 26... Nd7 {[%clk 0:00:59.6]} 27. Ne5 {[%clk 0:02:01.7]} 27...
Bxe5 {[%clk 0:00:58.3]} 28. dxe5 {[%clk 0:02:02.6]} 28... Nc5 {[%clk 0:00:56]}
29. Bc2 {[%clk 0:02:00.5]} 29... h6 {[%clk 0:00:53.6]} 30. f4 {[%clk 0:01:57.9]}
30... Nd7 {[%clk 0:00:47.9]} 31. Rbd1 {[%clk 0:01:50.6]} 31... Nb6 {[%clk
0:00:46.4]} 32. Bb3 {[%clk 0:01:49.6]} 32... Kf8 {[%clk 0:00:44.2]} 33. Re2
{[%clk 0:01:48.4]} 33... Ke7 {[%clk 0:00:44.3]} 34. Kh2 {[%clk 0:01:47.4]} 34...
Rc5 {[%clk 0:00:44.4]} 35. Rd4 {[%clk 0:01:41.2]} 35... Nc4 {[%clk 0:00:40.6]}
36. Bxc4 {[%clk 0:01:40.5]} 36... Rxc4 {[%clk 0:00:36.9]} 37. Red2 {[%clk
0:01:40]} 37... R8c7 {[%clk 0:00:33.7]} 38. Rxc4 {[%clk 0:01:38]} 38... Rxc4
{[%clk 0:00:27.9]} 39. Rd4 {[%clk 0:01:37.4]} 39... Rc7 {[%clk 0:00:20.6]} 40.
Kg3 {[%clk 0:01:35]} 40... Kd7 {[%clk 0:00:20.8]} 41. Kf3 {[%clk 0:01:35.1]}
41... Kc6 {[%clk 0:00:21.4]} 42. Rb4 {[%clk 0:01:35.2]} 42... Kc5 {[%clk
0:00:20.6]} 43. Ke3 {[%clk 0:01:35.1]} 43... b5 {[%clk 0:00:20.4]} 44. a4 {[%clk
0:01:33.3]} 44... bxa4 {[%clk 0:00:17.4]} 45. Rxa4 {[%clk 0:01:34.2]} 45... Rb7
{[%clk 0:00:18]} 46. g4 {[%clk 0:01:17.9]} 46... Rxb2 {[%clk 0:00:16]} 47. Ra7
{[%clk 0:01:17.3]} 47... Rh2 {[%clk 0:00:15]} 48. Rxf7 {[%clk 0:01:15.5]} 48...
Rxh3+ {[%clk 0:00:15.5]} 49. Kd2 {[%clk 0:01:15]} 49... Rh2+ {[%clk 0:00:12.2]}
50. Kd3 {[%clk 0:01:13.6]} 50... Rh3+ {[%clk 0:00:11.8]} 51. Kc2 {[%clk
0:01:13.7]} 51... Rh2+ {[%clk 0:00:12]} 52. Kb3 {[%clk 0:01:13.6]} 52... Rh3
{[%clk 0:00:11.3]} 53. Kc2 {[%clk 0:01:07.6]} 53... Rh2+ {[%clk 0:00:10.8]} 54.
Kd3 {[%clk 0:01:07.3]} 54... Rh3+ {[%clk 0:00:10.8]} 55. Kd2 {[%clk 0:01:07.8]}
55... Rh2+ {[%clk 0:00:11.2]} 56. Ke1 {[%clk 0:01:06.6]} 56... Kc4 {[%clk
0:00:10.2]} 57. Rxg7 {[%clk 0:01:05.3]} 57... Kxc3 {[%clk 0:00:10.4]} 58. Rg6
{[%clk 0:01:02.7]} 58... d4 {[%clk 0:00:10]} 59. Rxe6 {[%clk 0:01:01.5]} 59...
Kd3 {[%clk 0:00:10.1]} 60. Rd6 {[%clk 0:01:00.4]} 60... Ke3 {[%clk 0:00:10.4]}
61. Kf1 {[%clk 0:00:57.8]} 61... Rf2+ {[%clk 0:00:10.1]} 62. Kg1 {[%clk
0:00:57.7]} 62... Rxf4 {[%clk 0:00:10.8]} 63. e6 {[%clk 0:00:57.8]} 63... Rxg4+
{[%clk 0:00:10.9]} 64. Kh2 {[%clk 0:00:57.5]} 64... Re4 {[%clk 0:00:10]} 65. Kg3
{[%clk 0:00:56.4]} 65... d3 {[%clk 0:00:09.4]} 66. Kg2 {[%clk 0:00:51.4]} 66...
d2 {[%clk 0:00:09.5]} 67. Kf1 {[%clk 0:00:51.2]} 67... Rf4+ {[%clk 0:00:09.2]}
68. Kg1 {[%clk 0:00:50.7]} 68... Rd4 {[%clk 0:00:07.6]} 69. e7 {[%clk
0:00:45.3]} 69... d1=Q+ {[%clk 0:00:06.3]} 70. Kh2 {[%clk 0:00:45.3]} 70... Qh5+
{[%clk 0:00:05.5]} 71. Kg3 {[%clk 0:00:45.2]} 71... Rxd6 {[%clk 0:00:05.4]} 72.
e8=Q+ {[%clk 0:00:44.2]} 72... Qxe8 {[%clk 0:00:05.8]} 0-1